lending/lending_fUSD_20250917
["ID","MTS","AMOUNT","RATE_DAILY","PERIOD"]
[385877939,1758083445370,-167.66794,0.00033651,7]
[385877940,1758083445380,-242.580837,0.00033651,7]
[385877941,1758083445389,-151.0,0.00033651,7]
[385877942,1758083445398,-151.0,0.00033651,7]
[385877943,1758083445407,-500.0,0.00033652,120]
[385877944,1758083445416,-168.0,0.0003367,2]
[385877945,1758083445425,-161.9269312,0.00033673,2]
[385877946,1758083445434,-150.0,0.00033673,5]
[385877947,1758083445443,-500.0,0.00033673,5]
[385877948,1758083445453,-150.0,0.00033692,14]
[385877949,1758083445463,-500.0,0.00033692,14]
[385877950,1758083445472,-500.0,0.00033692,14]
[385877951,1758083445481,-500.0,0.00033692,14]
[385877952,1758083445490,-1826.0,0.00033692,14]
[385877953,1758083445499,-500.0,0.00033692,14]
[385877954,1758083445508,-402.97057617,0.00033692,14]
[385877955,1758083445517,-7315.97911659,0.00033702,2]
[385877956,1758083445526,-8882.6885148,0.00033706,2]
[385877957,1758083445535,-156.587,0.00033706,2]
[385877958,1758083445544,-1425.0,0.00033717,2]
[385877959,1758083445554,-164.88,0.00033718,2]
[385877960,1758083445563,-9211.34798985,0.00033761,2]
[385877961,1758083445572,-162.380719,0.00033761,2]
[385877962,1758083445581,-9552.16786547,0.00033816,2]
[385877963,1758083445590,-168.3888056,0.00033816,2]
[385877964,1758083445599,-500.0,0.00033827,2]
[385877965,1758083445608,-500.0,0.00033827,2]
[385877966,1758083445616,-205.84769861,0.00033827,2]
[385877967,1758083445626,-202.47675059,0.00033869,2]
[385877968,1758083445635,-600.0,0.00033869,2]
[385877969,1758083445644,-200.0,0.00033869,2]
[385877970,1758083445653,-1425.0,0.0003387,2]
[385877971,1758083445662,-505.0,0.0003387,2]
[385877972,1758083445672,-9905.5980765,0.00033871,2]
[385877973,1758083445681,-174.61919141,0.00033871,2]
[385877974,1758083445690,-152.0,0.0003388,4]
[385877975,1758083445701,-1000.0,0.0003389,2]
[385877976,1758083445710,-3804.5,0.000339,14]
[385877977,1758083445719,-1400.0,0.000339,12]
[385877978,1758083445728,-10272.10520533,0.00033926,2]
[385877979,1758083445737,-181.08010149,0.00033926,2]
[385877980,1758083445747,-200.0,0.00033949,2]
[385877981,1758083445756,-211.72239619,0.00033966,14]
[385877982,1758083445765,-500.0,0.00033966,14]
[385877983,1758083445774,-500.0,0.00033966,14]
[385877984,1758083445784,-500.0,0.00033966,14]
[385877985,1758083445794,-1826.0,0.00033966,14]
[385877986,1758083445803,-500.0,0.00033966,14]
[385877987,1758083445811,-4000.0,0.00033974,4]
[385877988,1758083445820,-1425.0,0.00033975,2]
[385877989,1758083445830,-1000.0,0.00033977,2]
[385877990,1758083445839,-10652.17309792,0.00033981,2]
[385877991,1758083445848,-187.78006525,0.00033981,2]
[385877993,1758083445858,-1000.0,0.00033981,5]
[385877994,1758083445867,-300.0,0.00033999,10]
[385877995,1758083445876,-666.0,0.00033999,10]
[385877996,1758083445885,-300.0,0.00033999,10]
[385877997,1758083445895,-900.0,0.00034,35]
[385877998,1758083445904,-15000.00698831,0.00034,5]
[385877999,1758083445913,-18765.61859681,0.00034,2]
[385878000,1758083445922,-617.17317377,0.00034,5]
[385878001,1758083445932,-2629.337626,0.00034,5]
[385878003,1758083445941,-205.48114484,0.00034,30]
[385878004,1758083445951,-11046.30350255,0.00034036,2]
[385878006,1758083445960,-194.72792766,0.00034036,2]
[385878008,1758083445970,-1007.64112434,0.00034068,5]
[385878009,1758083445979,-166.67,0.00034087,2]
[385878010,1758083445988,-1425.0,0.00034087,2]
[385878011,1758083445997,-11455.01673214,0.00034091,2]
[385878012,1758083446006,-201.93286099,0.00034091,2]
[385878013,1758083446015,-500.0,0.00034101,2]
[385878014,1758083446024,-500.0,0.00034101,2]
[385878015,1758083446033,-571.52,0.00034115,2]
[385878016,1758083446042,-10000.0,0.00034118,2]
[385878017,1758083446051,-1425.0,0.00034123,2]
[385878018,1758083446059,-11878.85235123,0.00034146,2]
[385878019,1758083446068,-209.40437684,0.00034146,2]
[385878020,1758083446078,-231.25800711,0.00034168,5]
[385878021,1758083446087,-1425.0,0.00034181,2]
[385878022,1758083446097,-1000.0,0.00034188,2]
[385878023,1758083446105,-151.0,0.00034199,2]
[385878024,1758083446114,-151.0,0.00034199,2]
[385878025,1758083446124,-151.0,0.00034199,2]
[385878026,1758083446133,-151.0,0.00034199,2]
[385878027,1758083446143,-151.0,0.00034199,2]
[385878028,1758083446153,-12318.36988823,0.00034201,2]
[385878029,1758083446162,-217.15233878,0.00034201,2]
[385878030,1758083446173,-300.0,0.00034217,10]
[385878031,1758083446182,-666.0,0.00034217,10]
[385878032,1758083446191,-300.0,0.00034217,10]
[385878033,1758083446201,-800.0,0.00034218,13]
[385878034,1758083446210,-800.0,0.00034218,13]
[385878035,1758083446219,-800.0,0.00034218,13]
[385878036,1758083446228,-800.0,0.00034218,13]
[385878037,1758083446237,-800.0,0.00034218,13]
[385878038,1758083446246,-800.0,0.00034218,13]
[385878039,1758083446255,-800.0,0.00034218,13]
[385878040,1758083446265,-800.0,0.00034218,13]
[385878041,1758083446274,-800.0,0.00034218,13]
[385878042,1758083446283,-800.0,0.00034218,13]
[385878043,1758083446292,-800.0,0.00034218,13]
[385878044,1758083446301,-800.0,0.00034218,13]
[385878045,1758083446310,-800.0,0.00034218,13]
[385878046,1758083446319,-800.0,0.00034218,13]
[385878047,1758083446328,-800.0,0.00034218,13]
[385878048,1758083446337,-800.0,0.00034218,13]
[385878049,1758083446346,-800.0,0.00034218,13]
[385878050,1758083446355,-800.0,0.00034218,13]
[385878051,1758083446364,-800.0,0.00034218,13]
[385878052,1758083446374,-800.0,0.00034218,13]
[385878053,1758083446383,-800.0,0.00034218,13]
[385878054,1758083446392,-800.0,0.00034218,13]
[385878055,1758083446401,-800.0,0.00034218,13]
[385878056,1758083446410,-232.0,0.00034218,13]
[385878057,1758083446419,-200.0,0.00034218,2]
[385878058,1758083446428,-200.0,0.00034218,2]
[385878059,1758083446438,-200.0,0.00034218,2]
[385878060,1758083446447,-200.0,0.00034218,2]
[385878061,1758083446456,-200.0,0.00034218,2]
[385878062,1758083446465,-200.0,0.00034218,2]
[385878063,1758083446474,-200.0,0.00034218,2]
[385878064,1758083446483,-200.0,0.00034218,2]
[385878065,1758083446493,-200.0,0.00034218,2]
[385878066,1758083446502,-200.0,0.00034218,2]
[385878067,1758083446511,-200.0,0.00034218,2]
[385878068,1758083446520,-200.0,0.00034218,2]
[385878069,1758083446529,-200.0,0.00034218,2]
[385878070,1758083446538,-200.0,0.00034218,2]
[385878071,1758083446547,-200.0,0.00034218,2]
[385878072,1758083446556,-200.0,0.00034218,2]
[385878073,1758083446565,-200.0,0.00034218,2]
[385878074,1758083446575,-200.0,0.00034218,2]
[385878075,1758083446583,-200.0,0.00034218,2]
[385878076,1758083446592,-200.0,0.00034218,2]
[385878077,1758083446602,-200.0,0.00034218,2]
[385878078,1758083446611,-200.0,0.00034218,2]
[385878079,1758083446624,-200.0,0.00034218,2]
[385878080,1758083446633,-200.0,0.00034218,2]
[385878081,1758083446643,-200.0,0.00034218,2]
[385878082,1758083446653,-200.0,0.00034218,2]
[385878083,1758083446662,-202.0,0.00034218,2]
[385878084,1758083446672,-250.0,0.00034221,5]
[385878085,1758083446681,-1000.0,0.00034221,5]
[385878086,1758083446690,-682.79038701,0.00034235,2]
[385878087,1758083446699,-500.0,0.0003424,14]
[385878088,1758083446708,-500.0,0.0003424,14]
[385878089,1758083446718,-500.0,0.0003424,14]
[385878090,1758083446727,-1826.0,0.0003424,14]
[385878091,1758083446736,-500.0,0.0003424,14]
[385878092,1758083446746,-6500.0,0.0003425,3]
[385878093,1758083446755,-12774.14957409,0.00034256,2]
[385878094,1758083446765,-288.91246079,0.00034256,2]
[385878095,1758083446774,-1000.0,0.00034262,2]
[385878096,1758083446784,-1000.0,0.00034264,2]
[385878097,1758083446794,-1262.8580435,0.00034266,2]
[385878098,1758083446803,-150.0,0.00034291,2]
[385878099,1758083446812,-325.44623276,0.00034299,10]
[385878100,1758083446821,-666.0,0.00034299,10]
[385878101,1758083446831,-300.0,0.00034299,10]
[385878102,1758083446842,-151.0,0.000343,7]
[385878103,1758083446851,-7315.97911659,0.000343,2]
[385878104,1758083446861,-672.14932845,0.0003431,10]
[385878105,1758083446871,-13246.79310833,0.00034311,2]
[385878106,1758083446880,-151.0,0.00034311,7]
[385878107,1758083446890,-151.0,0.00034311,7]
[385878108,1758083446900,-225.387877,0.00034311,7]
[385878109,1758083446910,-151.0,0.00034311,7]
[385878110,1758083446920,-225.387877,0.00034311,7]
[385878111,1758083446930,-225.387877,0.00034311,7]
[385878112,1758083446940,-225.387877,0.00034311,7]
[385878113,1758083446952,-169.85,0.00034326,60]
[385878114,1758083446962,-169.85,0.00034329,60]
[385878115,1758083446971,-1425.0,0.00034355,2]
[385878116,1758083446981,-13736.92445334,0.00034366,2]
[385878117,1758083446990,-151.0,0.00034366,7]
[385878118,1758083447000,-151.0,0.00034366,7]
[385878119,1758083447009,-151.0,0.00034366,7]
[385878120,1758083447019,-151.0,0.00034366,7]
[385878121,1758083447028,-151.0,0.00034366,7]
[385878122,1758083447038,-1200.0,0.00034367,5]
[385878123,1758083447047,-500.0,0.00034375,2]
[385878124,1758083447057,-500.0,0.00034375,2]
[385878125,1758083447067,-1000.0,0.00034387,2]
[385878126,1758083447076,-150.0,0.00034394,2]
[385878127,1758083447086,-2000.0,0.000344,2]
[385878128,1758083447095,-168.0,0.00034409,2]
[385878129,1758083447105,-600.0,0.00034417,2]
[385878130,1758083447115,-200.0,0.00034417,2]
[385878131,1758083447125,-1425.0,0.00034419,2]
[385878132,1758083447134,-169.85,0.00034426,60]
[385878133,1758083447144,-169.85,0.00034429,60]
[385878134,1758083447154,-666.0,0.00034449,10]
[385878135,1758083447163,-300.0,0.00034449,10]
[385878136,1758083447175,-601.0,0.0003445,5]
[385878137,1758083447186,-556.67,0.0003445,2]
[385878138,1758083447195,-2369.831,0.0003445,2]
[385878139,1758083447205,-2049.675,0.0003445,2]
[385878140,1758083447215,-756.0,0.0003445,2]
[385878141,1758083447225,-3406.547,0.0003445,2]
[385878142,1758083447235,-6178.0,0.0003445,2]
[385878143,1758083447245,-4172.0,0.0003445,2]
[385878144,1758083447254,-1266.39,0.0003445,2]
[385878145,1758083447265,-18871.0,0.0003445,2]
[385878146,1758083447274,-571.355,0.0003445,2]
[385878147,1758083447284,-256.58,0.00034454,30]
[385878148,1758083447293,-425.0,0.00034467,2]
[385878149,1758083447302,-150.0,0.00034496,2]
[385878150,1758083447311,-2071.17759145,0.000345,14]
[385878151,1758083447321,-767.73,0.000345,4]
[385878152,1758083447330,-159.85943138,0.00034514,14]
[385878153,1758083447340,-500.0,0.00034514,14]
[385878154,1758083447349,-500.0,0.00034514,14]
[385878155,1758083447359,-1826.0,0.00034514,14]
[385878156,1758083447368,-500.0,0.00034514,14]
[385878157,1758083447377,-159.0,0.00034521,30]
[385878158,1758083447386,-160.0,0.00034521,30]
[385878159,1758083447396,-169.85,0.00034526,60]
[385878160,1758083447405,-169.85,0.00034529,60]
[385878161,1758083447414,-774.71621033,0.00034529,5]
[385878162,1758083447423,-222.04085484,0.00034534,10]
[385878163,1758083447433,-1500.0,0.00034534,7]
[385878164,1758083447442,-14865.6221605,0.00034535,7]
[385878165,1758083447452,-125981.118236,0.00034535,7]
[385878166,1758083447462,-183.208148,0.00034535,7]
[385878167,1758083447471,-151.0,0.00034535,7]
[385878168,1758083447480,-211.545271,0.00034535,7]
[385878169,1758083447489,-1227.0,0.00034566,7]
[385878170,1758083447499,-154.0,0.00034566,7]
[385878171,1758083447508,-151.0,0.00034566,7]
[385878172,1758083447517,-154.0,0.00034566,7]
[385878173,1758083447526,-155.0,0.00034566,7]
[385878174,1758083447536,-151.0,0.00034566,7]
[385878175,1758083447546,-155.0,0.00034566,7]
[385878176,1758083447555,-155.0,0.00034566,7]
[385878177,1758083447564,-214.10916884,0.00034566,7]
[385878178,1758083447573,-150.0,0.00034575,7]
[385878179,1758083447583,-168.0,0.0003458,2]
[385878180,1758083447592,-1084.84,0.00034609,2]
[385878181,1758083447601,-543.08,0.00034609,2]
[385878182,1758083447808,-562.44,0.00034609,2]
[385878183,1758083447818,-194.01,0.0003462,2]
[385878184,1758083447828,-169.87,0.00034626,60]
[385878185,1758083447837,-169.85,0.00034629,60]
[385878186,1758083447846,-500.0,0.00034649,2]
[385878187,1758083447855,-500.0,0.00034649,2]
[385878188,1758083447864,-1800.0,0.000347,12]
[385878189,1758083447873,-455.47507047,0.000347,2]
[385878190,1758083447882,-946.52107907,0.000347,2]
[385878191,1758083447891,-1381.23321267,0.000347,7]
[385878192,1758083447900,-592.63284359,0.00034701,2]
[385878193,1758083447909,-150.0,0.00034723,2]
[385878194,1758083447919,-169.85,0.00034729,60]
[385878195,1758083447928,-151.0,0.00034747,2]
[385878196,1758083447937,-151.0,0.00034747,2]
[385878197,1758083447946,-228.26715187,0.00034747,2]
[385878198,1758083447955,-151.0,0.00034747,2]
[385878199,1758083447965,-151.0,0.00034747,2]
[385878200,1758083447974,-1425.0,0.00034754,2]
[385878201,1758083447983,-150.0,0.00034765,2]
[385878202,1758083447992,-257.91507625,0.00034768,2]
[385878203,1758083448002,-415.79611589,0.00034768,5]
[385878204,1758083448011,-1161.6603673,0.00034768,5]
[385878205,1758083448020,-328.71529327,0.00034771,2]
[385878206,1758083448029,-150.0,0.00034773,5]
[385878207,1758083448039,-399.51551028,0.00034773,2]
[385878208,1758083448049,-470.31572729,0.00034776,2]
[385878209,1758083448058,-2111.4406,0.00034779,2]
[385878210,1758083448068,-541.1159443,0.00034779,2]
[385878211,1758083448079,-611.91616131,0.00034782,2]
[385878212,1758083448088,-682.71637832,0.00034784,2]
[385878213,1758083448098,-164.74209923,0.00034786,2]
[385878214,1758083448107,-753.51659533,0.00034787,2]
[385878215,1758083448117,-500.0,0.00034788,14]
[385878216,1758083448127,-500.0,0.00034788,14]
[385878217,1758083448136,-1826.0,0.00034788,14]
[385878218,1758083448145,-500.0,0.00034788,14]
[385878219,1758083448154,-168.0,0.00034788,7]
[385878220,1758083448164,-824.31681234,0.0003479,2]
[385878221,1758083448176,-500.0,0.00034795,7]
[385878222,1758083448186,-500.0,0.00034795,7]
[385878223,1758083448195,-500.0,0.00034795,7]
[385878224,1758083448206,-500.0,0.00034795,7]
[385878225,1758083448215,-500.0,0.00034795,7]
[385878226,1758083448224,-500.0,0.00034795,7]
[385878227,1758083448234,-500.0,0.00034795,7]
[385878228,1758083448243,-500.0,0.00034795,7]
[385878229,1758083448252,-500.0,0.00034795,7]
[385878230,1758083448261,-500.0,0.00034795,7]
[385878231,1758083448271,-500.0,0.00034795,7]
[385878232,1758083448280,-500.0,0.00034795,7]
[385878233,1758083448290,-500.0,0.00034795,7]
[385878234,1758083448299,-500.0,0.00034795,7]
[385878235,1758083448309,-500.0,0.00034795,7]
[385878236,1758083448318,-500.0,0.00034795,7]
[385878237,1758083448328,-500.0,0.00034795,7]
[385878238,1758083448337,-500.0,0.00034795,7]
[385878239,1758083448347,-500.0,0.00034795,7]
[385878240,1758083448357,-500.0,0.00034795,7]
[385878241,1758083448366,-500.0,0.00034795,7]
[385878242,1758083448376,-500.0,0.00034795,7]
[385878243,1758083448386,-500.0,0.00034795,7]
[385878244,1758083448395,-500.0,0.00034795,7]
[385878245,1758083448404,-500.0,0.00034795,7]
[385878246,1758083448413,-515.45968835,0.00034795,7]
[385878247,1758083448423,-395529.72525427,0.000348,7]
[385878248,1758083448915,-1046.37415029,0.000348,7]
[385878249,1758083449084,-604.22558235,0.000348,7]
[385878250,1758083449096,-630.8239183,0.000348,7]
[385878251,1758083450340,-841.1091,0.00025676,2]
[385878252,1758083450421,-303.15271724,0.00025676,2]
[385878253,1758083450673,-2331.18,0.00025676,2]
[385878254,1758083450684,-483.21611784,0.00025676,2]
[385878255,1758083450716,-3708.16515031,0.00025676,2]
[385878256,1758083451928,-1501.15754964,0.00025676,2]
[385878257,1758083451938,-155.57436208,0.000309,2]
[385878258,1758083451948,-7000.0,0.0003258,2]
[385878259,1758083451958,-151.0,0.0003295,2]
[385878260,1758083451969,-726.0,0.0003445,2]
[385878261,1758083451980,-7000.0,0.0003458,2]
[385878262,1758083451989,-976.54651806,0.000348,7]
[385878263,1758083452492,-1234.0,0.00026679,2]
[385878264,1758083452503,-2102.7225839,0.00026679,2]
[385878265,1758083453639,-3527.11245154,0.00026679,2]
[385878266,1758083453717,-1120.82499999,0.00026679,2]
[385878267,1758083453761,-1183.32059955,0.00026679,2]
[385878268,1758083453771,-160.0,0.00029615,3]
[385878269,1758083453780,-603.418,0.00033746,2]
[385878270,1758083453789,-61959.24354129,0.000348,7]
[385878271,1758083453800,-361.9620028,0.000348,7]
[385878272,1758083453811,-374.80400016,0.000348,7]
[385878273,1758083453822,-1256.90013495,0.000348,7]
[385878274,1758083483701,170.91,0.00016505,2]
[385878275,1758083575908,1089.02053455,0.00030137,120]
[385878278,1758084490478,168.06,0.0001391,2]
[385878279,1758084490701,168.06,0.00016228,2]
[385878280,1758084491064,168.06,0.00018546,2]
[385878300,1758084632854,-170.91,0.00020632,2]
[385878302,1758084632864,-168.06,0.00020865,2]
[385878303,1758084632873,-186.99390288,0.00022595,2]
[385878304,1758084632882,-179.17769712,0.00022694,2]
[385878305,1758084632956,-540.335036,0.00022694,2]
[385878306,1758084633139,-480.48726688,0.00022694,2]
[385878307,1758084633149,-168.06,0.00023183,2]
[385878308,1758084633159,-230.29914293,0.00023602,2]
[385878309,1758084633169,-500.0,0.00023602,2]
[385878310,1758084633178,-500.0,0.00023602,2]
[385878311,1758084633188,-418.15102995,0.00023602,2]
[385878312,1758084633315,-81.84897005,0.00023602,2]
[385878313,1758084633324,-500.0,0.00023602,2]
[385878314,1758084633334,-500.0,0.00023602,2]
[385878315,1758084633343,-118.91430558,0.00023602,2]
[385878325,1758084638395,-500.0,0.00023604,2]
[385878326,1758084638404,-500.0,0.00023604,2]
[385878327,1758084638413,-199.78348927,0.00023604,2]
[385878328,1758084638423,-322.0,0.00023604,2]
[385878329,1758084638432,-13537.81013905,0.00023605,2]
[385878330,1758084638549,-13708.14134456,0.00023605,2]
[385878331,1758084638559,-0.07814239,0.00024174,2]
[385878332,1758084638642,-3931.53896503,0.00024174,2]
[385878334,1758084638653,-9153.63289258,0.00024174,2]
[385878336,1758084638663,-191.42,0.00024658,2]
[385878338,1758084638673,-800.0,0.00024758,2]
[385878340,1758084638682,-170.91,0.00024758,2]
[385878342,1758084638691,-186.99390288,0.0002479,2]
[385878344,1758084638700,-7032.87722673,0.0002489,2]
[385878346,1758084638710,-12694.28853795,0.000249,2]
[385878348,1758084638719,-168.06,0.00025501,2]
[385878351,1758084638729,-150.99,0.00025786,2]
[385878352,1758084638738,-502.88935764,0.000267,2]
[385878353,1758084638747,-500.0,0.00026867,2]
[385878354,1758084638756,-186.99390288,0.00026985,2]
[385878355,1758084638768,-545.0,0.00027137,2]
[385878356,1758084638783,-151.0,0.00027181,2]
[385878357,1758084638800,-151.0,0.00027181,2]
[385878358,1758084638809,-151.0,0.00027181,2]
[385878359,1758084638818,-161.43484294,0.00027181,2]
[385878360,1758084638828,-51528.3659173,0.00027198,2]
[385878361,1758084638837,-234.02916755,0.00027397,2]
[385878362,1758084638846,-1000.0,0.00027415,5]
[385878363,1758084638856,-168.06,0.0002782,2]
[385878364,1758084638866,-191.42,0.00027952,2]
[385878365,1758084638875,-1500.0,0.00027963,5]
[385878366,1758084638884,-182.88447874,0.00028148,2]
[385878367,1758084638893,-3769.41,0.00028379,2]
[385878368,1758084638902,-150.0,0.00028464,7]
[385878369,1758084638911,-2000.0,0.00028511,5]
[385878370,1758084638920,-162.47,0.00028564,30]
[385878371,1758084638930,-250.0,0.00028601,2]
[385878372,1758084638939,-6459.22,0.00028735,2]
[385878373,1758084638948,-602.27,0.00028779,2]
[385878374,1758084638957,-170.91,0.00028884,2]
[385878375,1758084638966,-2500.0,0.00029058,5]
[385878376,1758084638975,-200.0,0.00029217,2]
[385878377,1758084638984,-913.29,0.00029351,2]
[385878378,1758084638993,-5000.0,0.00029378,2]
[385878379,1758084639002,-150.0,0.00029379,2]
[385878380,1758084639011,-17694.2229172,0.0002941,2]
[385878381,1758084639023,-5000.0,0.000295,2]
[385878382,1758084639032,-709.65,0.000295,2]
[385878383,1758084639041,-179.02,0.00029534,2]
[385878384,1758084639050,-501.87758542,0.00029545,2]
[385878385,1758084639059,-446.67,0.000296,2]
[385878386,1758084639069,-1707.06,0.00029606,2]
[385878387,1758084639078,-3000.0,0.00029606,5]
[385878388,1758084639088,-213.1401216,0.00029615,3]
[385878389,1758084639097,-666.0,0.00029622,3]
[385878390,1758084639106,-167.7,0.0002966,2]
[385878391,1758084639115,-150.0,0.00029688,7]
[385878392,1758084639124,-150.0,0.00029688,7]
[385878393,1758084639133,-150.0,0.00029688,7]
[385878394,1758084639142,-150.0,0.00029688,7]
[385878395,1758084639152,-150.0,0.00029688,7]
[385878396,1758084639161,-150.0,0.00029688,7]
[385878397,1758084639170,-152.59674892,0.00029688,7]
[385878398,1758084639179,-150.0,0.00029688,7]
[385878399,1758084639189,-150.0,0.00029688,7]
[385878400,1758084639198,-150.0,0.00029688,7]
[385878401,1758084639207,-160.0,0.00029862,2]
[385878402,1758084639216,-160.0,0.00029862,2]
[385878403,1758084639225,-213.18994792,0.00029862,2]
[385878404,1758084639234,-516.07479255,0.00029862,2]
[385878405,1758084639243,-222.0,0.0003,21]
[385878406,1758084639252,-3500.0,0.00030154,5]
[385878407,1758084639261,-164.87388731,0.00030406,26]
[385878408,1758084639272,-812.722,0.00030406,26]
[385878409,1758084639281,-1258.06,0.000307,2]
[385878410,1758084639291,-4000.0,0.00030702,5]
[385878411,1758084639299,-446.67,0.0003071,2]
[385878412,1758084639309,-150.86,0.00030723,2]
[385878413,1758084639318,-150.0,0.00030725,2]
[385878414,1758084639327,-514.0,0.00030998,2]
[385878415,1758084639336,-179.02,0.00031174,2]
[385878416,1758084639345,-191.42,0.00031246,2]
[385878417,1758084639354,-4549.01873723,0.0003125,5]
[385878418,1758084639363,-152.0,0.00031513,3]
[385878419,1758084639372,-4035.1109,0.00031608,2]
[385878420,1758084639381,-6982.3754,0.00031708,2]
[385878421,1758084639390,-446.67,0.0003182,2]
[385878422,1758084639399,-2000.0,0.000321,2]
[385878423,1758084639408,-1000.0,0.00032131,2]
[385878424,1758084639418,-163.2,0.00032273,2]
[385878425,1758084639427,-1000.0,0.00032378,2]
[385878426,1758084639436,-3000.0,0.00032518,2]
[385878427,1758084639446,-151.0,0.00032518,2]
[385878428,1758084639455,-400.0,0.000326,11]
[385878429,1758084639464,-800.0,0.000327,11]
[385878430,1758084639473,-1200.0,0.000328,11]
[385878431,1758084639482,-3833.46279333,0.000328,2]
[385878432,1758084639491,-253.01938852,0.000328,11]
[385878433,1758084639500,-987.16553887,0.000328,15]
[385878434,1758084639509,-179.02,0.00032815,2]
[385878435,1758084639520,-500.0,0.00032873,5]
[385878436,1758084639530,-619.46786325,0.00032873,5]
[385878437,1758084639539,-500.0,0.00032873,5]
[385878438,1758084639547,-1121.6,0.00032876,120]
[385878439,1758084639556,-2107.79963597,0.0003289,2]
[385878440,1758084639565,-162.43766753,0.0003289,4]
[385878441,1758084639574,-516.07479255,0.0003289,3]
[385878442,1758084639583,-76689.2706048,0.0003289,3]
[385878443,1758084639592,-2111.4406,0.0003289,2]
[385878444,1758084639601,-5000.0,0.0003289,2]
[385878445,1758084639611,-12144.6671,0.000329,2]
[385878446,1758084639621,-191581.2247,0.000329,2]
[385878447,1758084639632,-1000.0,0.000329,2]
[385878448,1758084639642,-1600.0,0.000329,12]
[385878449,1758084639651,-4026.25416025,0.000329,2]
[385878450,1758084639660,-1262.8580435,0.000329,2]
[385878451,1758084639670,-446.67,0.00032929,2]
[385878452,1758084639680,-150.0,0.00032947,2]
[385878453,1758084639690,-262.11582682,0.0003295,2]
[385878454,1758084639699,-334.06919105,0.00032952,2]
[385878455,1758084639708,-406.02255528,0.00032955,2]
[385878456,1758084639718,-477.9759195,0.00032958,2]
[385878457,1758084639727,-549.92928373,0.0003296,2]
[385878458,1758084639735,-621.88264795,0.00032963,2]
[385878459,1758084639744,-693.83601218,0.00032965,2]
[385878460,1758084639754,-13625.2370967,0.00032966,3]
[385878461,1758084639763,-765.78937641,0.00032968,2]
[385878462,1758084639773,-837.74274064,0.0003297,2]
[385878463,1758084639783,-38344.6353024,0.0003297,3]
[385878464,1758084639792,-81751.4225802,0.0003297,3]
[385878465,1758084639802,-500.0,0.00032973,5]
[385878466,1758084639811,-500.0,0.00032973,5]
[385878467,1758084639820,-500.0,0.00032973,5]
[385878468,1758084639829,-200.0,0.00032973,5]
[385878469,1758084639839,-161.9269312,0.00032973,2]
[385878470,1758084639848,-500.0,0.00032973,5]
[385878471,1758084639857,-19172.3176512,0.00032977,3]
[385878472,1758084639867,-2973.16777688,0.00032979,2]
[385878473,1758084639876,-153378.54121,0.0003298,3]
[385878474,1758084639885,-218003.793547,0.0003298,3]
[385878475,1758084639895,-151.57,0.0003298,2]
[385878476,1758084639904,-157.07448983,0.00032986,7]
[385878477,1758084639913,-156.64771004,0.00032986,7]
[385878478,1758084639922,-150.00000001,0.00032986,7]
[385878479,1758084639932,-150.0,0.00032986,7]
[385878480,1758084639941,-150.0,0.00032986,7]
[385878481,1758084639950,-3833.46279332,0.00032987,2]
[385878482,1758084639959,-500.0,0.00032989,2]
[385878483,1758084639969,-500.0,0.00032989,2]